bitfinex-derivatives/quotes_BTCF0:USTF0_20250904
["timestamp","ask_amount","ask_price","bid_price","bid_amount"]
[1757001112929,0.29687584,109610.0,109600.0,3.13303509]
[1757001113329,0.29287584,109610.0,109600.0,3.13503509]
[1757001113934,0.29287584,109610.0,109600.0,3.13399509]
[1757001114133,0.28987584,109610.0,109600.0,3.13599509]
[1757001114934,0.28987584,109610.0,109600.0,3.13499509]
[1757001116828,0.28987584,109610.0,109600.0,2.28659509]
[1757001117035,0.28987584,109610.0,109600.0,3.13483509]
[1757001117537,0.28987584,109610.0,109600.0,3.28633509]
[1757001119229,0.28987584,109610.0,109600.0,2.18809509]
[1757001119429,0.28987584,109610.0,109600.0,2.35548347]
[1757001120338,0.53987584,109610.0,109600.0,2.35544357]
[1757001121225,0.53987584,109610.0,109600.0,2.35444357]
[1757001122532,0.53987584,109610.0,109600.0,1.16657286]
[1757001122741,0.53987584,109610.0,109600.0,2.35336357]
[1757001123441,0.51987584,109610.0,109600.0,2.11063697]
[1757001124234,0.51987584,109610.0,109600.0,2.27478189]
[1757001124538,0.52087584,109610.0,109600.0,2.27478189]
[1757001124944,0.52087584,109610.0,109600.0,2.36600819]
[1757001125140,0.52087584,109610.0,109600.0,2.02621748]
[1757001125335,0.52087584,109610.0,109600.0,1.93499118]
[1757001125545,0.52087584,109610.0,109600.0,2.27478189]
[1757001125847,0.52087584,109610.0,109600.0,2.27474189]
[1757001126041,0.52087584,109610.0,109600.0,1.93495118]
[1757001126237,0.52087584,109610.0,109600.0,1.42682189]
[1757001126543,0.90152655,109610.0,109600.0,1.44074492]
[1757001126745,0.90152655,109610.0,109600.0,1.27656]
[1757001126942,0.90252655,109610.0,109600.0,1.27656]
[1757001127152,0.90152655,109610.0,109600.0,1.27656]
[1757001127353,0.90152655,109610.0,109600.0,1.20868]
[1757001127853,0.56173584,109610.0,109600.0,1.20868]
[1757001128049,0.53780584,109610.0,109600.0,1.20868]
[1757001129149,0.90552655,109610.0,109600.0,0.3608]
[1757001129454,0.90552655,109610.0,109600.0,1.2086]
[1757001130949,0.90552655,109610.0,109600.0,0.3608]
[1757001131154,0.90552655,109610.0,109600.0,1.20856]
[1757001131956,0.90552655,109610.0,109600.0,0.3608]
[1757001132151,0.56573584,109610.0,109600.0,1.20856]
[1757001132546,0.52487584,109610.0,109600.0,1.54835071]
[1757001133654,0.52087584,109610.0,109600.0,1.54835071]
[1757001133853,0.52187584,109610.0,109600.0,1.54835071]
[1757001134053,0.53680584,109610.0,109600.0,1.54835071]
[1757001134858,0.53680584,109610.0,109600.0,1.20856]
[1757001136558,0.53680584,109610.0,109600.0,1.54835071]
[1757001139760,0.27187584,109610.0,109600.0,1.63957721]
[1757001140259,0.27187584,109610.0,109600.0,1.20856]
[1757001140461,0.27187584,109610.0,109600.0,1.54835071]
[1757001140763,0.27087584,109610.0,109600.0,1.54835071]
[1757001141262,0.26987584,109610.0,109600.0,1.54835071]
[1757001141562,0.26987584,109610.0,109600.0,1.20856]
[1757001141764,0.26987584,109610.0,109600.0,1.54835071]
[1757001142462,0.27087584,109610.0,109600.0,1.54835071]
[1757001142762,0.27087584,109610.0,109600.0,1.20856]
[1757001142963,0.27087584,109610.0,109600.0,1.54835071]
[1757001143656,0.27187584,109610.0,109600.0,1.54835071]
[1757001144064,0.27087584,109610.0,109600.0,1.54835071]
[1757001145264,0.31198584,109610.0,109600.0,0.70059071]
[1757001145562,0.28510584,109610.0,109600.0,1.54799071]
[1757001146361,0.27087584,109610.0,109600.0,1.63921711]
[1757001146866,0.27187584,109610.0,109600.0,1.63921711]
[1757001147066,0.27187584,109610.0,109600.0,1.54799071]
[1757001147463,0.27087584,109610.0,109600.0,1.54799071]
[1757001147968,0.27087584,109610.0,109600.0,1.54787071]
[1757001148556,0.26987584,109610.0,109600.0,1.54787071]
[1757001148762,0.26987584,109610.0,109600.0,0.70059071]
[1757001149065,0.31098584,109610.0,109600.0,0.70059071]
[1757001149367,0.65277655,109610.0,109600.0,1.208]
[1757001150463,0.31298584,109610.0,109600.0,1.208]
[1757001150862,0.28710584,109610.0,109600.0,1.208]
[1757001151370,0.31298584,109610.0,109600.0,1.20796]
[1757001151863,0.65277655,109610.0,109600.0,1.20796]
[1757001152063,0.31298584,109610.0,109600.0,1.20796]
[1757001154664,0.28710584,109610.0,109600.0,1.20796]
[1757001155261,0.90277655,109610.0,109600.0,1.2078]
[1757001155466,0.56298584,109610.0,109600.0,1.2078]
[1757001155665,0.90277655,109610.0,109600.0,1.2078]
[1757001158574,0.56298584,109610.0,109600.0,1.2078]
[1757001158771,0.62689655,109610.0,109600.0,1.2078]
[1757001158967,0.27187584,109610.0,109600.0,1.54759071]
[1757001160274,0.27187584,109610.0,109600.0,1.63881741]
[1757001161977,0.26987584,109610.0,109600.0,1.54759071]
[1757001162373,0.26987584,109610.0,109600.0,1.63881741]
[1757001162574,0.26987584,109610.0,109600.0,1.88881741]
[1757001162776,0.26987584,109610.0,109600.0,1.5490267]
[1757001163077,0.26987584,109610.0,109600.0,1.88881741]
[1757001163771,0.26987584,109610.0,109600.0,1.79739071]
[1757001163976,0.26987584,109610.0,109600.0,1.96157563]
[1757001164676,0.26987584,109610.0,109600.0,1.79739071]
[1757001166079,0.26987584,109610.0,109600.0,1.4576]
[1757001166280,0.26987584,109610.0,109600.0,1.79739071]
[1757001166480,0.26987584,109610.0,109600.0,1.88861751]
[1757001167480,0.26987584,109610.0,109600.0,1.04181751]
[1757001167679,0.26987584,109610.0,109600.0,1.88845751]
[1757001168079,0.26987584,109610.0,109600.0,1.72969422]
[1757001170588,0.26987584,109610.0,109600.0,0.88305422]
[1757001170882,0.26987584,109610.0,109600.0,2.09033422]
[1757001171785,0.26987584,109610.0,109600.0,3.14685422]
[1757001171982,0.26987584,109610.0,109600.0,3.99329422]
[1757001172174,0.26987584,109610.0,109600.0,3.99429422]
[1757001172978,0.26987584,109610.0,109600.0,4.3806726]
[1757001173586,0.26987584,109610.0,109600.0,4.6457926]
[1757001174883,0.26987584,109610.0,109600.0,4.6467926]
[1757001175289,0.26987584,109610.0,109600.0,3.8014326]
[1757001175490,0.26987584,109610.0,109600.0,4.6477126]
[1757001175984,0.26987584,109610.0,109600.0,3.8014326]
[1757001176191,0.26987584,109610.0,109600.0,4.6477126]
[1757001176384,0.26987584,109610.0,109600.0,3.8014326]
[1757001176587,0.26987584,109610.0,109600.0,4.6476726]
[1757001176788,0.26987584,109610.0,109600.0,3.8014326]
[1757001176987,0.26987584,109610.0,109600.0,4.6476726]
[1757001177590,0.26987584,109610.0,109600.0,4.6466726]
[1757001178095,0.26987584,109610.0,109600.0,3.8004326]
[1757001178295,0.26987584,109610.0,109600.0,4.6465926]
[1757001178593,0.26987584,109610.0,109600.0,4.6475926]
[1757001178794,0.26987584,109610.0,109600.0,3.8004326]
[1757001178992,0.28435584,109610.0,109600.0,4.3063258]
[1757001179386,0.28435584,109610.0,109600.0,4.3053258]
[1757001179589,0.28435584,109610.0,109600.0,4.3063258]
[1757001179794,0.26987584,109610.0,109600.0,4.3975525]
[1757001180786,0.26987584,109610.0,109600.0,4.3965525]
[1757001180987,0.26987584,109610.0,109600.0,4.3975525]
[1757001181192,0.26987584,109610.0,109600.0,4.3965525]
[1757001181593,0.26987584,109610.0,109600.0,4.73636701]
[1757001181894,0.26987584,109610.0,109600.0,4.73736701]
[1757001182697,0.26987584,109610.0,109600.0,4.88886701]
[1757001182996,0.26987584,109610.0,109600.0,4.73736701]
[1757001184610,0.26987584,109610.0,109600.0,3.89124701]
[1757001184907,0.26987584,109610.0,109600.0,4.64594031]
[1757001185105,0.26987584,109610.0,109600.0,4.73716701]
[1757001186004,0.26987584,109610.0,109600.0,4.73516701]
[1757001190120,0.26987584,109610.0,109600.0,4.64594031]
[1757001190314,0.26987584,109610.0,109600.0,4.73716701]
[1757001191115,0.26987584,109610.0,109600.0,4.73516701]
[1757001192005,0.26987584,109610.0,109600.0,4.73616701]
[1757001192208,0.26987584,109610.0,109600.0,3.89124701]
[1757001192408,0.26987584,109610.0,109600.0,4.64566031]
[1757001192618,0.26987584,109610.0,109600.0,4.64466031]
[1757001192916,0.26987584,109610.0,109600.0,4.64566031]
[1757001193315,0.28435584,109610.0,109600.0,4.64558031]
[1757001194215,0.28435584,109610.0,109600.0,4.64458031]
[1757001194618,0.53435584,109610.0,109600.0,4.5533436]
[1757001194815,0.53435584,109610.0,109600.0,4.5523436]
[1757001197112,0.26987584,109610.0,109600.0,4.5523436]
[1757001197312,0.26987584,109610.0,109600.0,4.2871436]
[1757001200212,0.26987584,109610.0,109600.0,3.60753838]
[1757001200408,0.28522584,109610.0,109600.0,4.2871436]
[1757001202421,0.26987584,109610.0,109600.0,4.3783703]
[1757001202819,0.26987584,109610.0,109600.0,5.05940962]
[1757001203019,0.26987584,109610.0,109600.0,4.71960701]
[1757001203519,0.26987584,109610.0,109600.0,4.88479193]
[1757001204320,0.26987584,109610.0,109600.0,4.72160701]
[1757001206223,0.26987584,109610.0,109600.0,4.47160701]
[1757001208011,0.26987584,109610.0,109600.0,3.79200179]
[1757001208212,0.26987584,109610.0,109600.0,4.81140962]
[1757001208819,0.26987584,109610.0,109600.0,3.79200179]
[1757001209021,0.26987584,109610.0,109600.0,4.81140962]
[1757001210724,0.26987584,109610.0,109600.0,4.97559454]
[1757001212324,0.26987584,109610.0,109600.0,4.81140962]
[1757001212729,0.26987584,109610.0,109600.0,4.81240962]
[1757001213823,0.26987584,109610.0,109600.0,4.81040962]
[1757001214025,0.26987584,109610.0,109600.0,4.81140962]
[1757001216431,0.26987584,109610.0,109600.0,4.81056962]
[1757001218130,0.25187584,109610.0,109600.0,5.07576962]
[1757001218933,0.25187584,109610.0,109600.0,4.23104962]
[1757001219228,0.25187584,109610.0,109600.0,5.07568962]
[1757001219419,0.25187584,109610.0,109600.0,4.73588701]
[1757001219924,0.25187584,109610.0,109600.0,4.73488701]
[1757001220130,0.25187584,109610.0,109600.0,5.07568962]
[1757001222024,0.25187584,109610.0,109600.0,5.23987454]
[1757001222726,0.25187584,109610.0,109600.0,5.39137454]
[1757001222931,0.25187584,109610.0,109600.0,5.07568962]
[1757001224234,0.01669886,109640.0,109620.0,0.0912078]
[1757001224422,0.32669886,109640.0,109630.0,1.90584261]
[1757001225226,0.32669886,109640.0,109630.0,1.56604]
[1757001225434,0.66750147,109640.0,109630.0,1.90584261]
[1757001225733,0.66750147,109640.0,109630.0,1.97708622]
[1757001225933,0.67050147,109640.0,109630.0,1.63728361]
[1757001226133,0.67050147,109640.0,109630.0,1.97708622]
[1757001226434,0.67150147,109640.0,109630.0,1.97708622]
[1757001226829,0.33169886,109640.0,109630.0,1.97708622]
[1757001227031,0.66850147,109640.0,109630.0,1.97708622]
[1757001227234,0.32969886,109640.0,109630.0,1.97708622]
[1757001227624,0.32969886,109640.0,109630.0,1.13264622]
[1757001227830,0.66950147,109640.0,109630.0,0.79284361]
[1757001228032,0.66950147,109640.0,109630.0,1.97696622]
[1757001228829,0.32969886,109640.0,109630.0,1.63716361]
[1757001229137,0.66910147,109640.0,109630.0,1.97696622]
[1757001229637,0.32929886,109640.0,109630.0,1.97696622]
[1757001229934,0.32929886,109640.0,109630.0,2.09168932]
[1757001229935,0.66910147,109640.0,109630.0,2.09168932]
[1757001231232,0.32929886,109640.0,109630.0,2.09168932]
[1757001232036,0.32929886,109640.0,109630.0,1.97696622]
[1757001232935,0.32929886,109640.0,109630.0,1.63716361]
[1757001233135,0.32929886,109640.0,109630.0,1.97696622]
[1757001234035,0.32929886,109640.0,109630.0,1.63716361]
[1757001234230,0.32929886,109640.0,109630.0,1.97696622]
[1757001235134,0.32929886,109640.0,109630.0,1.63716361]
[1757001235328,0.32929886,109640.0,109630.0,1.97696622]
[1757001236237,0.32929886,109640.0,109630.0,1.63716361]
[1757001236439,0.32929886,109640.0,109630.0,1.97696622]
[1757001237232,0.32929886,109640.0,109630.0,1.75186273]
[1757001237432,0.32929886,109640.0,109630.0,2.09166534]
[1757001239333,0.66910147,109640.0,109630.0,2.09166534]
[1757001239632,0.31436886,109640.0,109630.0,2.77266955]
[1757001239842,0.05535,109660.0,109640.0,0.0911875]
[1757001240031,0.36535,109660.0,109650.0,1.90528261]
[1757001240735,0.70515261,109660.0,109650.0,1.90528261]
[1757001241039,0.36735,109660.0,109650.0,1.99646771]
[1757001241641,0.36735,109660.0,109650.0,1.90528261]
[1757001241940,0.36835,109660.0,109650.0,1.90528261]
[1757001242332,0.36835,109660.0,109650.0,1.99646771]
[1757001242532,0.36835,109660.0,109650.0,1.90528261]
[1757001242735,0.71215261,109660.0,109650.0,1.90528261]
[1757001243031,0.37235,109660.0,109650.0,1.91445793]
[1757001243439,0.37235,109660.0,109650.0,2.00539594]
[1757001243932,0.37235,109660.0,109650.0,1.57465532]
[1757001244239,0.37235,109660.0,109650.0,1.99622062]
[1757001244938,0.37235,109660.0,109650.0,2.00524515]
[1757001245440,0.37235,109660.0,109650.0,1.90503552]
[1757001246034,0.37235,109660.0,109650.0,1.99622062]
[1757001246238,0.37235,109660.0,109650.0,2.0052287]
[1757001246829,0.357,109660.0,109650.0,2.0052287]
[1757001247030,0.357,109660.0,109650.0,1.56516]
[1757001247232,0.357,109660.0,109650.0,1.90471552]
[1757001247438,0.37133,109660.0,109650.0,1.56516]
[1757001247749,0.37133,109660.0,109650.0,1.99590062]
[1757001248234,0.37133,109660.0,109650.0,2.11988198]
[1757001248436,0.357,109660.0,109650.0,2.36988198]
[1757001248742,0.357,109660.0,109650.0,2.82246795]
[1757001248943,0.357,109660.0,109650.0,3.12246795]
[1757001249243,0.357,109660.0,109650.0,3.67396795]
[1757001249447,0.357,109660.0,109650.0,2.53040795]
[1757001249636,0.357,109660.0,109650.0,3.73388795]
[1757001249833,0.357,109660.0,109650.0,2.53040795]
[1757001250042,0.357,109660.0,109650.0,2.43922285]
[1757001250236,0.357,109660.0,109650.0,2.26690285]
[1757001250438,0.357,109660.0,109650.0,2.04177983]
[1757001250735,0.357,109660.0,109650.0,1.76656509]
[1757001250736,0.37133,109660.0,109650.0,1.76656509]
[1757001251142,0.37133,109660.0,109650.0,2.60996509]
[1757001251438,0.37133,109660.0,109650.0,2.27040957]
[1757001251642,0.37133,109660.0,109650.0,2.11872998]
[1757001251842,0.37133,109660.0,109650.0,1.77917446]
[1757001252045,0.37133,109660.0,109650.0,1.27536998]
[1757001252340,0.39693,109660.0,109650.0,1.77913446]
[1757001252746,0.39693,109660.0,109650.0,1.89356696]
[1757001252948,0.40601548,109660.0,109650.0,1.81588696]
[1757001253144,0.39693,109660.0,109650.0,2.04100998]
[1757001254248,0.39693,109660.0,109650.0,2.04096998]
[1757001254549,0.40610869,109660.0,109650.0,2.04096998]
[1757001254847,0.39593,109660.0,109650.0,2.04096998]
[1757001255437,0.39393,109660.0,109650.0,2.04096998]
[1757001256338,0.36833,109660.0,109650.0,2.04096998]
[1757001257148,0.36833,109660.0,109650.0,1.70141446]
[1757001257454,0.36833,109660.0,109650.0,2.04096998]
[1757001258043,0.354,109660.0,109650.0,2.3805255]
[1757001258243,0.354,109660.0,109650.0,2.04096998]
[1757001258640,0.354,109660.0,109650.0,2.3805255]
[1757001258847,0.354,109660.0,109650.0,2.04096998]
[1757001259549,0.354,109660.0,109650.0,2.83615311]
[1757001259954,0.354,109660.0,109650.0,2.15704207]
[1757001260152,0.354,109660.0,109650.0,2.83615311]
[1757001260357,0.354,109660.0,109650.0,2.15704207]
[1757001260558,0.354,109660.0,109650.0,2.49659759]
[1757001261550,0.354,109660.0,109650.0,2.15684207]
[1757001261755,0.36864,109660.0,109650.0,2.55547759]
[1757001261956,0.36864,109660.0,109650.0,1.71239759]
[1757001262349,0.36864,109660.0,109650.0,2.70689759]
[1757001262547,0.36864,109660.0,109650.0,2.30539759]
[1757001262748,0.36864,109660.0,109650.0,1.12284207]
[1757001262956,0.36864,109660.0,109650.0,2.30539759]
[1757001264657,0.36864,109660.0,109650.0,2.21416248]
[1757001264855,0.36864,109660.0,109650.0,1.81552696]
[1757001265453,0.36864,109660.0,109650.0,2.15508248]
[1757001266860,0.352,109660.0,109650.0,2.15508248]
[1757001267159,0.35,109660.0,109650.0,2.15508248]
[1757001267755,0.38943,109660.0,109650.0,0.97256696]
[1757001268061,0.38943,109660.0,109650.0,2.15496248]
[1757001268663,0.38943,109660.0,109650.0,1.81540696]
[1757001268853,0.38943,109660.0,109650.0,2.15496248]
[1757001269251,0.39043,109660.0,109650.0,1.81540696]
[1757001269448,0.39143,109660.0,109650.0,1.81540696]
[1757001269752,0.39143,109660.0,109650.0,2.15496248]
[1757001270363,0.39143,109660.0,109650.0,1.81540696]
[1757001270553,0.39143,109660.0,109650.0,2.15496248]
[1757001271058,0.39143,109660.0,109650.0,1.81540696]
[1757001271258,0.39143,109660.0,109650.0,2.15496248]
[1757001272665,0.39143,109660.0,109650.0,2.04052998]
[1757001273161,0.98098552,109660.0,109650.0,0.7216]
[1757001273361,0.98098552,109660.0,109650.0,1.56432]
[1757001273762,0.98098552,109660.0,109650.0,1.67911414]
[1757001276158,0.98098552,109660.0,109650.0,1.56432]
[1757001279167,0.64143,109660.0,109650.0,1.56432]
[1757001279368,0.98098552,109660.0,109650.0,1.56432]
[1757001279756,0.64143,109660.0,109650.0,1.56432]
[1757001279963,0.98098552,109660.0,109650.0,1.56432]
[1757001280166,0.64143,109660.0,109650.0,1.56432]
[1757001280367,0.98098552,109660.0,109650.0,1.56432]
[1757001280765,0.39143,109660.0,109650.0,1.90387552]
[1757001281173,0.39143,109660.0,109650.0,1.56432]
[1757001281474,0.39143,109660.0,109650.0,1.90387552]
[1757001282270,0.39143,109660.0,109650.0,2.01866966]
[1757001282974,0.39143,109660.0,109650.0,1.67911414]
[1757001283269,0.41143,109660.0,109650.0,1.67911414]
[1757001283772,0.38664,109660.0,109650.0,1.90387552]
[1757001284772,0.38664,109660.0,109650.0,2.15387552]
[1757001285469,0.38464,109660.0,109650.0,2.15387552]
[1757001285672,0.37,109660.0,109650.0,2.15387552]
[1757001285871,0.371,109660.0,109650.0,2.15387552]
[1757001286367,0.372,109660.0,109650.0,2.15387552]
[1757001286572,0.38735,109660.0,109650.0,2.15387552]
[1757001286771,0.352,109660.0,109650.0,1.81432]
[1757001287073,0.352,109660.0,109650.0,2.15387552]
[1757001288276,0.351,109660.0,109650.0,2.15387552]
[1757001288476,0.35,109660.0,109650.0,2.15387552]
[1757001288672,0.35,109660.0,109650.0,1.81432]
[1757001288871,0.35,109660.0,109650.0,2.15387552]
[1757001289278,0.36535,109660.0,109650.0,1.81432]
[1757001289479,0.36535,109660.0,109650.0,2.15387552]
[1757001290277,0.36535,109660.0,109650.0,2.26866966]
[1757001290776,0.36535,109660.0,109650.0,2.15387552]
[1757001291379,0.36535,109660.0,109650.0,2.26866966]
[1757001292588,0.35,109660.0,109650.0,2.26866966]
[1757001294786,0.35,109660.0,109650.0,1.92911414]
[1757001294994,0.35,109660.0,109650.0,2.26866966]
[1757001297090,0.35,109660.0,109650.0,1.31115552]
[1757001297294,0.35,109660.0,109650.0,2.15339552]
[1757001297497,0.36535,109660.0,109650.0,2.15339552]
[1757001297990,0.35,109660.0,109650.0,2.15339552]
[1757001298189,0.35,109660.0,109650.0,2.74229899]
[1757001298384,0.35,109660.0,109650.0,2.83348409]
[1757001298589,0.35,109660.0,109650.0,2.94821595]
[1757001298790,0.35,109660.0,109650.0,2.10597595]
[1757001298993,0.35,109660.0,109650.0,2.83348409]
[1757001299199,0.35,109660.0,109650.0,2.58348409]
[1757001299596,0.35,109660.0,109650.0,2.40811349]
[1757001299997,0.35,109660.0,109650.0,2.52284763]
[1757001300392,0.35,109660.0,109650.0,2.35866271]
[1757001300993,0.35,109660.0,109650.0,1.51642271]
[1757001301199,0.35,109660.0,109650.0,1.69043761]
[1757001301397,0.36535,109660.0,109650.0,1.69043761]
[1757001301598,0.36535,109660.0,109650.0,2.53259761]
[1757001301804,0.36535,109660.0,109650.0,2.62378271]
[1757001302098,0.36535,109660.0,109650.0,2.53259761]
[1757001302493,0.36535,109660.0,109650.0,1.69043761]
[1757001302701,0.36535,109660.0,109650.0,2.53255761]
[1757001302898,0.36535,109660.0,109650.0,2.41782347]
[1757001303399,0.36535,109660.0,109650.0,1.57570347]
[1757001303596,0.36535,109660.0,109650.0,2.41782347]
[1757001303797,0.36535,109660.0,109650.0,2.41778347]
[1757001304502,0.36535,109660.0,109650.0,1.23614795]
[1757001304704,0.36535,109660.0,109650.0,2.53926347]
[1757001304997,0.36535,109660.0,109650.0,2.31445201]
[1757001305301,0.36535,109660.0,109650.0,2.65400753]
[1757001305503,0.7049207,109660.0,109650.0,2.65402271]
[1757001305998,1.2944914,109660.0,109650.0,1.3811769]
[1757001306201,1.2944914,109660.0,109650.0,1.26643284]
[1757001306398,1.2944914,109660.0,109650.0,1.97154794]
[1757001306594,1.2944914,109660.0,109650.0,1.12950794]
[1757001306901,1.2944914,109660.0,109650.0,1.97150794]
[1757001307098,1.3185414,109660.0,109650.0,0.979052]
[1757001307292,1.3195414,109660.0,109650.0,1.821052]
[1757001308095,1.3195414,109660.0,109650.0,1.699572]
[1757001308297,1.3215414,109660.0,109650.0,1.699572]
[1757001309406,1.3205414,109660.0,109650.0,1.699572]
[1757001309597,1.3225414,109660.0,109650.0,1.699572]
[1757001310192,1.6621121,109660.0,109650.0,1.699572]
[1757001310397,1.6621121,109660.0,109650.0,1.31754406]
[1757001311504,1.6621121,109660.0,109650.0,1.41822406]
[1757001312397,1.6621121,109660.0,109650.0,1.30348]
[1757001312604,1.6621121,109660.0,109650.0,1.41822406]
[1757001313101,1.6621121,109660.0,109650.0,1.31754406]
[1757001316010,2.0229121,109660.0,109650.0,0.95670406]
[1757001316800,2.0229121,109660.0,109650.0,0.84196]
[1757001319002,2.3429121,109660.0,109650.0,0.84196]
[1757001319309,2.0229121,109660.0,109650.0,0.84196]
[1757001322707,2.3729121,109660.0,109650.0,0.82659]
[1757001322908,0.03761,109650.0,109640.0,0.02164385]
[1757001323112,1.0167514,109650.0,109640.0,0.86342385]
[1757001324107,1.0187514,109650.0,109640.0,0.86342385]
[1757001325513,1.0207514,109650.0,109640.0,0.86342385]
[1757001327808,0.34161,109650.0,109640.0,1.22422385]
[1757001328014,0.6811807,109650.0,109640.0,1.81379455]
[1757001328212,0.6811807,109650.0,109640.0,1.47422385]
[1757001328707,1.0207514,109650.0,109640.0,0.3608]
[1757001328914,1.0207514,109650.0,109640.0,0.8464]
[1757001329410,1.6103221,109650.0,109640.0,0.00456]
[1757001329611,1.9803221,109650.0,109640.0,0.84636]
[1757001329805,1.9711221,109650.0,109640.0,0.84636]
[1757001330001,1.6315514,109650.0,109640.0,0.84636]
[1757001330204,1.9711221,109650.0,109640.0,0.84636]
[1757001330813,1.6315514,109650.0,109640.0,0.84636]
[1757001331417,1.0207514,109650.0,109640.0,1.12078]
[1757001331719,0.6811807,109650.0,109640.0,1.12078]
[1757001332413,1.0207514,109650.0,109640.0,1.12078]
[1757001332611,1.0207514,109650.0,109640.0,1.48158]
[1757001336713,0.34161,109650.0,109640.0,1.48158]
[1757001337113,1.0207514,109650.0,109640.0,1.48158]
[1757001337920,0.6811807,109650.0,109640.0,1.48158]
[1757001338219,0.304,109650.0,109640.0,1.9200253]
[1757001338408,0.6435707,109650.0,109640.0,1.9200253]
[1757001338614,0.6435707,109650.0,109640.0,2.08421022]
[1757001339022,0.6435707,109650.0,109640.0,1.74301562]
[1757001339414,0.6435707,109650.0,109640.0,1.5788307]
[1757001339814,0.6435707,109650.0,109640.0,0.7370307]
[1757001340021,0.6801807,109650.0,109640.0,1.5787507]
[1757001340220,0.6801807,109650.0,109640.0,1.5710707]
[1757001340923,0.6781807,109650.0,109640.0,1.5710707]
[1757001341120,0.6781807,109650.0,109640.0,1.2315]
[1757001341321,0.6781807,109650.0,109640.0,1.5710707]
[1757001341519,0.6791807,109650.0,109640.0,1.5710707]
[1757001343922,0.6791807,109650.0,109640.0,0.7293507]
[1757001344116,0.6791807,109650.0,109640.0,1.5709907]
[1757001344515,0.6791807,109650.0,109640.0,1.23142]
[1757001345023,0.6791807,109650.0,109640.0,1.5709907]
[1757001345219,0.302,109650.0,109640.0,1.5825707]
[1757001345620,0.6415707,109650.0,109640.0,1.5825707]
[1757001345817,0.302,109650.0,109640.0,2.263336]
[1757001346013,0.302,109650.0,109640.0,2.35453942]
[1757001346427,0.301,109650.0,109640.0,2.49206738]
[1757001346627,0.29293,109650.0,109640.0,2.51344876]
[1757001346924,0.29293,109650.0,109640.0,1.67180876]
[1757001347119,0.29293,109650.0,109640.0,2.51336876]
[1757001347319,0.29293,109650.0,109640.0,2.67755368]
[1757001347520,0.29293,109650.0,109640.0,2.67855368]
[1757001347823,0.29193,109650.0,109640.0,2.67855368]
[1757001348824,0.29193,109650.0,109640.0,2.67955368]
[1757001349025,0.29193,109650.0,109640.0,2.81199368]
[1757001350523,0.26997,109650.0,109640.0,2.81199368]
[1757001350724,0.26997,109650.0,109640.0,1.97043368]
[1757001351230,0.26997,109650.0,109640.0,2.81187368]
[1757001351530,0.26997,109650.0,109640.0,2.91288876]
[1757001352529,0.26997,109650.0,109640.0,3.06438876]
[1757001353124,0.26997,109650.0,109640.0,2.22294876]
[1757001353320,0.28527,109650.0,109640.0,1.38072736]
[1757001353528,0.6248407,109650.0,109640.0,2.12930004]
[1757001353827,0.26997,109650.0,109640.0,2.90126876]
[1757001354329,0.26997,109650.0,109640.0,2.63606876]
[1757001354632,0.26997,109650.0,109640.0,2.75064352]
[1757001355032,0.26997,109650.0,109640.0,1.95592736]
[1757001355233,0.27097,109650.0,109640.0,2.63406876]
[1757001355728,0.26997,109650.0,109640.0,2.63506876]
[1757001356130,0.26997,109650.0,109640.0,2.63606876]
[1757001357035,0.08,109650.0,109640.0,2.63606876]
[1757001357331,0.04,109660.0,109650.0,0.0911863]
[1757001357530,0.39,109660.0,109650.0,2.66818913]
[1757001357730,0.39,109660.0,109650.0,2.80430733]
[1757001357932,0.39,109660.0,109650.0,3.73683075]
[1757001358433,0.39,109660.0,109650.0,2.89551075]
[1757001358639,0.39,109660.0,109650.0,3.74134075]
[1757001359241,0.39,109660.0,109650.0,3.75054555]
[1757001359640,0.39,109660.0,109650.0,3.63599342]
[1757001359842,0.39,109660.0,109650.0,2.90927433]
[1757001360041,0.39,109660.0,109650.0,3.75055433]
[1757001360237,0.7295707,109660.0,109650.0,2.90006953]
[1757001360444,1.3344414,109660.0,109650.0,3.21934911]
[1757001361140,1.3344414,109660.0,109650.0,2.37810911]
[1757001361336,1.3344414,109660.0,109650.0,2.24199091]
[1757001361548,1.3344414,109660.0,109650.0,3.08319091]
[1757001361739,0.6553,109660.0,109650.0,2.12743]
[1757001361934,1.3344414,109660.0,109650.0,2.12743]
[1757001362137,1.3364414,109660.0,109650.0,3.08319091]
[1757001362335,1.3374414,109660.0,109650.0,3.08319091]
[1757001362531,1.3354414,109660.0,109650.0,2.24199091]
[1757001362736,1.3384414,109660.0,109650.0,3.08319091]
[1757001362936,1.3384414,109660.0,109650.0,2.21167]
[1757001363132,1.3384414,109660.0,109650.0,3.16754608]
[1757001363334,1.3374414,109660.0,109650.0,3.16754608]
[1757001363642,1.3384414,109660.0,109650.0,3.16754608]
[1757001363843,1.3384414,109660.0,109650.0,2.32634608]
[1757001364144,1.3354414,109660.0,109650.0,3.16754608]
[1757001364340,1.3384414,109660.0,109650.0,2.96863]
[1757001364644,1.3384414,109660.0,109650.0,1.20655]
[1757001367442,0.99900475,109660.0,109650.0,1.20655]
[1757001367744,1.3651095,109660.0,109650.0,0.00455]
[1757001367950,1.3651095,109660.0,109650.0,0.84571]
[1757001368547,1.3651095,109660.0,109650.0,0.00455]
[1757001368849,1.3651095,109660.0,109650.0,0.96042608]
[1757001369551,1.3651095,109660.0,109650.0,0.84575]
[1757001371640,0.6857,109660.0,109650.0,0.84575]
[1757001371842,1.3651095,109660.0,109650.0,0.84575]
[1757001378654,1.3651095,109660.0,109650.0,0.00455]
[1757001379056,1.3651095,109660.0,109650.0,0.84567]
[1757001379456,1.3651095,109660.0,109650.0,0.84571]
[1757001380750,1.3651095,109660.0,109640.0,1.3609]
[1757001380951,0.01469,109650.0,109640.0,1.3609]
[1757001381148,0.33469,109650.0,109640.0,2.20192]
[1757001381348,1.0140995,109650.0,109640.0,2.20192]
[1757001382649,1.0150995,109650.0,109640.0,2.20192]
[1757001384261,1.0180995,109650.0,109640.0,2.20192]
[1757001384462,1.0190995,109650.0,109640.0,2.20192]
[1757001386156,1.0190995,109650.0,109640.0,1.84112]
[1757001386558,1.2947795,109650.0,109640.0,1.0]
[1757001386762,1.2947795,109650.0,109640.0,1.84112]
[1757001389159,1.2947795,109650.0,109640.0,1.0]
[1757001389360,1.2947795,109650.0,109640.0,1.84108]
[1757001390358,1.2947795,109650.0,109640.0,1.0]
[1757001390558,2.0155795,109650.0,109640.0,0.17492157]
[1757001390764,1.6555795,109650.0,109640.0,1.01600157]
[1757001391858,1.9955795,109650.0,109640.0,1.01600157]
[1757001392058,1.6755795,109650.0,109640.0,1.01600157]